fUSD/lending_fUSD_20251201
["ID","MTS","AMOUNT","RATE_DAILY","PERIOD"]
[395308474,1764607840873,-150.0,0.00015288,2]
[395308475,1764607840883,-150.0,0.00015288,2]
[395308476,1764607840894,-150.0,0.00015288,2]
[395308477,1764607840903,-150.0,0.00015288,2]
[395308478,1764607840913,-150.0,0.00015288,2]
[395308479,1764607840923,-150.0,0.00015288,2]
[395308480,1764607840933,-150.0,0.00015288,2]
[395308481,1764607840942,-150.0,0.00015288,2]
[395308482,1764607840952,-150.0,0.00015288,2]
[395308483,1764607840962,-190.82998658,0.00015288,2]
[395308484,1764607840971,-150.0,0.00015288,2]
[395308485,1764607840980,-150.0,0.00015331,2]
[395308486,1764607840989,-150.0,0.00015346,2]
[395308487,1764607840999,-1399.0,0.00015348,2]
[395308488,1764607841008,-200.0,0.00015348,2]
[395308489,1764607841018,-200.0,0.00015348,2]
[395308490,1764607841028,-500.0,0.00015348,2]
[395308491,1764607841037,-1000.0,0.00015359,2]
[395308492,1764607841047,-150.0,0.00015365,2]
[395308493,1764607841056,-150.0,0.00015375,2]
[395308494,1764607841065,-150.0,0.00015382,2]
[395308495,1764607841075,-150.0,0.00015388,2]
[395308496,1764607841084,-150.0,0.00015394,2]
[395308497,1764607841093,-150.0,0.00015405,2]
[395308498,1764607841104,-1636.29833906,0.00015406,2]
[395308499,1764607841113,-716.52354449,0.00015406,2]
[395308500,1764607841123,-150.0,0.00015418,2]
[395308501,1764607841133,-150.0,0.00015442,2]
[395308502,1764607841142,-150.0,0.00015442,2]
[395308503,1764607841153,-600.0,0.00015457,2]
[395308504,1764607841163,-2068.13157054,0.00015461,2]
[395308505,1764607841173,-150.0,0.00015462,2]
[395308506,1764607841182,-150.0,0.00015463,2]
[395308507,1764607841192,-150.0,0.00015476,2]
[395308508,1764607841202,-150.0,0.00015476,2]
[395308509,1764607841211,-150.0,0.00015488,2]
[395308510,1764607841221,-150.0,0.000155,2]
[395308511,1764607841230,-150.0,0.00015505,2]
[395308512,1764607841240,-20255.66887113,0.00015506,2]
[395308513,1764607841250,-150.0,0.00015519,2]
[395308514,1764607841260,-150.0,0.00015522,2]
[395308515,1764607841270,-150.0,0.0001553,2]
[395308516,1764607841279,-150.0,0.00015549,2]
[395308517,1764607841289,-150.0,0.00015571,2]
[395308518,1764607841299,-150.0,0.00015581,2]
[395308519,1764607841308,-150.0,0.00015587,2]
[395308520,1764607841318,-150.0,0.00015593,2]
[395308521,1764607841328,-150.0,0.00015597,2]
[395308522,1764607841338,-150.0,0.00015597,2]
[395308523,1764607841348,-150.0,0.00015606,2]
[395308524,1764607841358,-151.0,0.00015617,2]
[395308525,1764607841367,-1399.0,0.00015622,2]
[395308526,1764607841377,-150.0,0.00015636,2]
[395308527,1764607841387,-150.0,0.00015639,2]
[395308528,1764607841396,-150.0,0.00015665,2]
[395308529,1764607841407,-150.0,0.00015665,2]
[395308530,1764607841417,-150.0,0.00015674,2]
[395308531,1764607841427,-150.0,0.0001568,2]
[395308532,1764607841436,-150.0,0.00015687,2]
[395308533,1764607841446,-150.0,0.00015698,2]
[395308534,1764607841456,-716.52354449,0.00015705,2]
[395308535,1764607841468,-150.0,0.00015712,2]
[395308536,1764607841477,-150.0,0.00015712,2]
[395308537,1764607841488,-150.0,0.00015712,2]
[395308538,1764607841498,-150.0,0.00015723,2]
[395308539,1764607841507,-20255.66887113,0.00015738,2]
[395308540,1764607841517,-2020.89154111,0.00015742,2]
[395308541,1764607841527,-150.0,0.00015751,2]
[395308542,1764607841537,-150.0,0.00015751,2]
[395308543,1764607841546,-150.0,0.00015756,2]
[395308544,1764607841556,-150.0,0.0001576,2]
[395308545,1764607841565,-150.0,0.00015767,2]
[395308546,1764607841575,-150.0,0.00015773,2]
[395308547,1764607841584,-150.0,0.00015787,2]
[395308548,1764607841596,-150.0,0.0001581,2]
[395308549,1764607841606,-150.0,0.00015815,2]
[395308550,1764607841616,-150.0,0.00015818,2]
[395308551,1764607841626,-150.0,0.00015828,2]
[395308552,1764607841637,-1200.0,0.00015831,2]
[395308553,1764607841649,-150.0,0.00015854,2]
[395308554,1764607841659,-150.0,0.00015854,2]
[395308555,1764607841669,-150.0,0.00015854,2]
[395308556,1764607841681,-150.0,0.00015854,2]
[395308557,1764607841691,-150.0,0.00015854,2]
[395308558,1764607841701,-150.0,0.00015873,2]
[395308559,1764607841711,-150.0,0.00015887,2]
[395308560,1764607841723,-1399.0,0.00015896,2]
[395308561,1764607841734,-200.0,0.00015896,2]
[395308562,1764607841743,-200.0,0.00015896,2]
[395308563,1764607841753,-500.0,0.00015896,2]
[395308564,1764607841763,-150.0,0.00015897,2]
[395308565,1764607841773,-150.0,0.00015905,2]
[395308566,1764607841783,-150.0,0.00015905,2]
[395308567,1764607841793,-255.0,0.00015924,2]
[395308568,1764607841804,-150.0,0.00015925,2]
[395308569,1764607841814,-150.0,0.00015932,2]
[395308570,1764607841824,-150.0,0.00015941,2]
[395308571,1764607841834,-150.0,0.00015948,2]
[395308572,1764607841844,-2865.76834963,0.00015949,2]
[395308573,1764607841853,-20255.66887113,0.00015971,2]
[395308574,1764607841863,-150.0,0.00015983,2]
[395308575,1764607841872,-150.0,0.00015985,2]
[395308576,1764607841882,-150.0,0.00015987,2]
[395308577,1764607841892,-150.0,0.00015991,2]
[395308578,1764607841902,-477.24,0.00015992,2]
[395308579,1764607841913,-2230.59782528,0.00015994,2]
[395308580,1764607841923,-291.28618921,0.00015999,2]
[395308581,1764607841934,-500.0,0.00015999,2]
[395308582,1764607841944,-500.0,0.00015999,2]
[395308583,1764607841953,-500.0,0.00015999,2]
[395308584,1764607841963,-413.92477484,0.00015999,2]
[395308585,1764607841973,-716.52354449,0.00016004,2]
[395308586,1764607841983,-600.0,0.00016005,2]
[395308587,1764607841992,-150.0,0.00016016,2]
[395308588,1764607842002,-150.0,0.00016028,2]
[395308589,1764607842012,-150.0,0.00016031,2]
[395308590,1764607842021,-522.79968162,0.00016031,2]
[395308591,1764607842030,-3178.27,0.00016032,2]
[395308592,1764607842040,-150.0,0.00016043,2]
[395308593,1764607842049,-150.0,0.00016043,2]
[395308594,1764607842059,-150.0,0.00016049,2]
[395308595,1764607842068,-150.0,0.0001606,2]
[395308596,1764607842078,-150.0,0.0001606,2]
[395308597,1764607842088,-150.0,0.00016072,2]
[395308598,1764607842099,-150.0,0.00016087,2]
[395308599,1764607842108,-150.0,0.00016108,2]
[395308600,1764607842118,-150.0,0.00016115,2]
[395308601,1764607842128,-9999.99,0.00016116,2]
[395308602,1764607842138,-150.0,0.00016137,2]
[395308604,1764607842148,-150.0,0.00016137,2]
[395308606,1764607842157,-150.0,0.00016137,2]
[395308608,1764607842168,-150.0,0.00016137,2]
[395308610,1764607842177,-150.0,0.00016137,2]
[395308612,1764607842186,-150.0,0.00016137,2]
[395308614,1764607842197,-620.0,0.00016149,2]
[395308615,1764607842206,-151.0,0.00016149,2]
[395308616,1764607842215,-3000.0,0.00016149,2]
[395308617,1764607842226,-151.0,0.00016149,2]
[395308619,1764607842236,-187.78006524,0.00016149,2]
[395308620,1764607842245,-151.0,0.00016149,2]
[395308622,1764607842255,-3000.0,0.00016149,2]
[395308623,1764607842265,-646.65982734,0.00016149,2]
[395308624,1764607842275,-6896.79183564,0.00016149,2]
[395308625,1764607842284,-3000.0,0.00016149,2]
[395308626,1764607842294,-3000.0,0.00016149,2]
[395308627,1764607842304,-3000.0,0.00016149,2]
[395308628,1764607842313,-3000.0,0.00016149,2]
[395308629,1764607842323,-514.84070869,0.00016149,2]
[395308630,1764607842333,-3000.0,0.00016149,2]
[395308632,1764607842343,-3000.0,0.00016149,2]
[395308634,1764607842354,-3000.0,0.00016149,2]
[395308636,1764607842363,-1500.0,0.00016149,2]
[395308638,1764607842380,-3000.0,0.00016149,2]
[395308640,1764607842391,-1500.0,0.00016149,2]
[395308641,1764607842401,-3000.0,0.00016149,2]
[395308642,1764607842411,-151.0,0.00016149,2]
[395308643,1764607842421,-1500.0,0.00016149,2]
[395308644,1764607842431,-3000.0,0.00016149,2]
[395308645,1764607842441,-151.0,0.00016149,2]
[395308646,1764607842451,-1000.0,0.00016149,2]
[395308647,1764607842460,-1500.0,0.00016149,2]
[395308648,1764607842469,-156.587,0.00016149,2]
[395308650,1764607842479,-1000.0,0.00016149,2]
[395308652,1764607842489,-10000.0,0.00016149,2]
[395308653,1764607842498,-1500.0,0.00016149,2]
[395308654,1764607842508,-162.380719,0.00016149,2]
[395308655,1764607842517,-1000.0,0.00016149,2]
[395308656,1764607842527,-10000.0,0.00016149,2]
[395308657,1764607842537,-1500.0,0.00016149,2]
[395308658,1764607842547,-151.48487804,0.00016149,2]
[395308659,1764607842556,-1000.0,0.00016149,2]
[395308660,1764607842566,-10000.0,0.00016149,2]
[395308661,1764607842576,-1500.0,0.00016149,2]
[395308662,1764607842586,-1000.0,0.00016149,2]
[395308663,1764607842596,-10000.0,0.00016149,2]
[395308664,1764607842606,-1500.0,0.00016149,2]
[395308665,1764607842617,-10000.0,0.00016149,2]
[395308666,1764607842627,-1000.0,0.00016149,2]
[395308667,1764607842646,-1500.0,0.00016149,2]
[395308668,1764607842657,-1000.0,0.00016149,2]
[395308669,1764607842667,-10000.0,0.00016149,2]
[395308670,1764607842677,-1500.0,0.00016149,2]
[395308671,1764607842688,-311.1,0.00016149,2]
[395308672,1764607842698,-1000.0,0.00016149,2]
[395308673,1764607842708,-1500.0,0.00016149,2]
[395308674,1764607842721,-10000.0,0.00016149,2]
[395308675,1764607842731,-1000.0,0.00016149,2]
[395308676,1764607842742,-559.7798745,0.00016149,2]
[395308677,1764607842751,-10000.0,0.00016149,2]
[395308678,1764607842762,-1000.0,0.00016149,2]
[395308679,1764607842772,-10000.0,0.00016149,2]
[395308680,1764607842781,-1000.0,0.00016149,2]
[395308681,1764607842791,-10000.0,0.00016149,2]
[395308682,1764607842801,-1000.0,0.00016149,2]
[395308683,1764607842811,-248.71531821,0.00016149,2]
[395308684,1764607842821,-10000.0,0.00016149,2]
[395308685,1764607842831,-1000.0,0.00016149,2]
[395308686,1764607842840,-187.78006524,0.00016149,2]
[395308687,1764607842851,-10000.0,0.00016149,2]
[395308688,1764607842861,-250.0,0.00016149,2]
[395308689,1764607842871,-10000.0,0.00016149,2]
[395308690,1764607842881,-2500.0,0.00016149,2]
[395308691,1764607842891,-254.91048614,0.00016149,2]
[395308692,1764607842901,-10000.0,0.00016149,2]
[395308693,1764607842910,-2500.0,0.00016149,2]
[395308694,1764607842920,-2500.0,0.00016149,2]
[395308695,1764607842930,-2500.0,0.00016149,2]
[395308696,1764607842939,-2500.0,0.00016149,2]
[395308697,1764607842948,-2500.0,0.00016149,2]
[395308698,1764607842958,-1000.0,0.00016149,2]
[395308699,1764607842967,-2500.0,0.00016149,2]
[395308700,1764607842976,-1000.0,0.00016149,2]
[395308701,1764607842985,-220.0,0.00016149,2]
[395308702,1764607842995,-1000.0,0.00016149,2]
[395308703,1764607843005,-221.73898581,0.00016149,2]
[395308704,1764607843015,-2500.0,0.00016149,2]
[395308705,1764607843024,-250.0,0.00016149,2]
[395308706,1764607843034,-1000.0,0.00016149,2]
[395308707,1764607843044,-2500.0,0.00016149,2]
[395308708,1764607843054,-1000.0,0.00016149,2]
[395308709,1764607843063,-2500.0,0.00016149,2]
[395308710,1764607843073,-250.0,0.00016149,2]
[395308711,1764607843083,-1000.0,0.00016149,2]
[395308712,1764607843094,-2500.0,0.00016149,2]
[395308713,1764607843105,-250.0,0.00016149,2]
[395308714,1764607843115,-1000.0,0.00016149,2]
[395308715,1764607843126,-2500.0,0.00016149,2]
[395308716,1764607843136,-250.0,0.00016149,2]
[395308717,1764607843145,-1000.0,0.00016149,2]
[395308718,1764607843155,-2500.0,0.00016149,2]
[395308719,1764607843165,-250.0,0.00016149,2]
[395308720,1764607843174,-1000.0,0.00016149,2]
[395308721,1764607843186,-2500.0,0.00016149,2]
[395308722,1764607843195,-354.84418245,0.00016149,2]
[395308723,1764607843205,-762.94247186,0.00016149,2]
[395308724,1764607843214,-1000.0,0.00016149,2]
[395308725,1764607843223,-8000.0,0.00016149,2]
[395308726,1764607843233,-1000.0,0.00016149,2]
[395308727,1764607843243,-8000.0,0.00016149,2]
[395308728,1764607843252,-1000.0,0.00016149,2]
[395308729,1764607843262,-8000.0,0.00016149,2]
[395308730,1764607843271,-1000.0,0.00016149,2]
[395308731,1764607843281,-8000.0,0.00016149,2]
[395308732,1764607843290,-1000.0,0.00016149,2]
[395308733,1764607843300,-578.20924308,0.00016149,2]
[395308734,1764607843309,-8000.0,0.00016149,2]
[395308735,1764607843319,-1000.0,0.00016149,2]
[395308736,1764607843329,-8000.0,0.00016149,2]
[395308737,1764607843339,-1000.0,0.00016149,2]
[395308738,1764607843349,-8000.0,0.00016149,2]
[395308739,1764607843359,-1000.0,0.00016149,2]
[395308740,1764607843369,-8000.0,0.00016149,2]
[395308741,1764607843381,-1000.0,0.00016149,2]
[395308742,1764607843391,-8000.0,0.00016149,2]
[395308743,1764607843401,-1000.0,0.00016149,2]
[395308744,1764607843411,-8000.0,0.00016149,2]
[395308745,1764607843420,-1000.0,0.00016149,2]
[395308746,1764607843430,-8000.0,0.00016149,2]
[395308747,1764607843439,-1328.07662834,0.00016149,2]
[395308748,1764607843761,-1000.0,0.00016149,2]
[395308749,1764607843771,-151.0,0.00016149,2]
[395308750,1764607843781,-8000.0,0.00016149,2]
[395308751,1764607843792,-1000.0,0.00016149,2]
[395308752,1764607843802,-8148.05773878,0.00016149,2]
[395308753,1764607843811,-1000.0,0.00016149,2]
[395308754,1764607843821,-300.0,0.00016149,2]
[395308755,1764607843831,-2750.0,0.00016149,2]
[395308756,1764607843841,-500.0,0.00016149,2]
[395308757,1764607843852,-500.0,0.00016149,2]
[395308758,1764607843862,-500.0,0.00016149,2]
[395308759,1764607843871,-500.0,0.00016149,2]
[395308760,1764607843881,-500.0,0.00016149,2]
[395308761,1764607843892,-541.53388498,0.00016149,2]
[395308762,1764607843902,-500.0,0.00016149,2]
[395308763,1764607843911,-1000.0,0.00016149,2]
[395308764,1764607843920,-500.0,0.00016149,2]
[395308765,1764607843929,-1000.0,0.00016149,2]
[395308766,1764607843939,-500.0,0.00016149,2]
[395308767,1764607843948,-1000.0,0.00016149,2]
[395308768,1764607843958,-500.0,0.00016149,2]
[395308769,1764607843967,-1000.0,0.00016149,2]
[395308770,1764607843976,-500.0,0.00016149,2]
[395308771,1764607843985,-1000.0,0.00016149,2]
[395308772,1764607843995,-500.0,0.00016149,2]
[395308773,1764607844005,-1000.0,0.00016149,2]
[395308774,1764607844015,-500.0,0.00016149,2]
[395308775,1764607844024,-1000.0,0.00016149,2]
[395308776,1764607844033,-1000.0,0.00016149,2]
[395308777,1764607844043,-1000.0,0.00016149,2]
[395308778,1764607844053,-500.0,0.00016149,2]
[395308779,1764607844062,-1000.0,0.00016149,2]
[395308780,1764607844071,-500.0,0.00016149,2]
[395308781,1764607844081,-1000.0,0.00016149,2]
[395308782,1764607844090,-1000.0,0.00016149,2]
[395308783,1764607844103,-1000.0,0.00016149,2]
[395308784,1764607844112,-500.0,0.00016149,2]
[395308785,1764607844122,-500.0,0.00016149,2]
[395308786,1764607844133,-500.0,0.00016149,2]
[395308787,1764607844142,-500.0,0.00016149,2]
[395308788,1764607844152,-500.0,0.00016149,2]
[395308789,1764607844162,-500.0,0.00016149,2]
[395308790,1764607844171,-500.0,0.00016149,2]
[395308791,1764607844181,-500.0,0.00016149,2]
[395308792,1764607844191,-500.0,0.00016149,2]
[395308793,1764607844201,-500.0,0.00016149,2]
[395308794,1764607844211,-500.0,0.00016149,2]
[395308795,1764607844221,-500.0,0.00016149,2]
[395308796,1764607844231,-382.0011413,0.00016149,2]
[395308797,1764607844241,-322.76,0.00016154,2]
[395308798,1764607844251,-150.0,0.00016159,2]
[395308799,1764607844261,-151.0,0.00016165,2]
[395308800,1764607844271,-150.0,0.00016166,2]
[395308801,1764607844281,-1399.0,0.0001617,2]
[395308802,1764607844290,-150.0,0.00016187,2]
[395308803,1764607844300,-150.0,0.00016202,2]
[395308804,1764607844309,-20255.66887113,0.00016203,2]
[395308805,1764607844319,-2750.0,0.00016204,2]
[395308806,1764607844328,-150.0,0.00016214,2]
[395308807,1764607844338,-150.0,0.00016214,2]
[395308808,1764607844348,-150.0,0.00016225,2]
[395308809,1764607844357,-150.0,0.00016231,2]
[395308810,1764607844367,-150.0,0.00016231,2]
[395308811,1764607844376,-150.0,0.00016243,2]
[395308812,1764607844385,-150.0,0.00016246,2]
[395308813,1764607844395,-250.0,0.00016251,2]
[395308814,1764607844405,-150.0,0.00016258,2]
[395308815,1764607844415,-2750.0,0.00016259,2]
[395308816,1764607844424,-253.6,0.0001626,2]
[395308817,1764607844434,-208.93,0.00016267,2]
[395308818,1764607844444,-150.0,0.00016283,2]
[395308819,1764607844454,-150.0,0.00016287,2]
[395308820,1764607844463,-150.0,0.00016289,2]
[395308821,1764607844473,-150.0,0.00016291,2]
[395308822,1764607844483,-373.97112144,0.00016298,2]
[395308823,1764607844492,-716.52354449,0.00016303,2]
[395308824,1764607844502,-2750.0,0.00016314,2]
[395308825,1764607844512,-307.78797683,0.00016318,2]
[395308826,1764607844522,-500.0,0.0001632,2]
[395308827,1764607844532,-150.0,0.00016326,2]
[395308828,1764607844543,-150.0,0.00016333,2]
[395308829,1764607844553,-150.0,0.00016342,2]
[395308830,1764607844563,-150.0,0.00016349,2]
[395308831,1764607844573,-150.0,0.00016369,2]
[395308832,1764607844583,-150.0,0.00016369,2]
[395308833,1764607844594,-2750.0,0.00016369,2]
[395308834,1764607844603,-150.0,0.00016377,2]
[395308835,1764607844614,-150.0,0.00016387,2]
[395308836,1764607844624,-150.0,0.00016401,2]
[395308837,1764607844634,-150.0,0.0001642,2]
[395308838,1764607844648,-150.0,0.0001642,2]
[395308839,1764607844659,-150.0,0.0001642,2]
[395308840,1764607844668,-150.0,0.0001642,2]
[395308841,1764607844679,-150.0,0.0001642,2]
[395308842,1764607844691,-2750.0,0.00016424,2]
[395308843,1764607844702,-20255.66887113,0.00016435,2]
[395308844,1764607844713,-500.0,0.00016438,2]
[395308845,1764607844725,-500.0,0.00016438,2]
[395308846,1764607844735,-500.0,0.00016438,2]
[395308847,1764607844745,-500.0,0.00016438,2]
[395308848,1764607844756,-500.0,0.00016438,2]
[395308849,1764607844766,-500.0,0.00016438,2]
[395308850,1764607844776,-500.0,0.00016438,2]
[395308851,1764607844786,-500.0,0.00016438,2]
[395308852,1764607844796,-500.0,0.00016438,2]
[395308853,1764607844806,-500.0,0.00016438,2]
[395308854,1764607844816,-500.0,0.00016438,2]
[395308855,1764607844826,-500.0,0.00016438,2]
[395308856,1764607844839,-500.0,0.00016438,2]
[395308857,1764607844851,-500.0,0.00016438,2]
[395308858,1764607844860,-500.0,0.00016438,2]
[395308859,1764607844870,-1000.0,0.00016438,2]
[395308860,1764607844880,-1000.0,0.00016438,2]
[395308861,1764607844890,-1000.0,0.00016438,2]
[395308862,1764607844900,-317.37727413,0.00016438,2]
[395308863,1764607844910,-500.0,0.00016438,2]
[395308864,1764607844920,-500.0,0.00016438,2]
[395308865,1764607844931,-500.0,0.00016438,2]
[395308866,1764607844941,-500.0,0.00016438,2]
[395308867,1764607844951,-800.0,0.00016438,2]
[395308868,1764607844962,-164.01,0.0001644,2]
[395308869,1764607844971,-1399.0,0.00016444,2]
[395308870,1764607844982,-200.0,0.00016444,2]
[395308871,1764607844992,-205.57943248,0.00016444,2]
[395308872,1764607845002,-500.0,0.00016444,2]
[395308873,1764607845013,-150.0,0.00016446,2]
[395308874,1764607845023,-150.0,0.00016455,2]
[395308875,1764607845033,-150.0,0.00016459,2]
[395308876,1764607845043,-150.0,0.00016464,2]
[395308877,1764607845053,-2750.0,0.00016479,2]
[395308878,1764607845063,-150.0,0.00016487,2]
[395308879,1764607845074,-150.0,0.00016501,2]
[395308880,1764607845084,-150.0,0.00016507,2]
[395308881,1764607845097,-150.0,0.00016514,2]
[395308882,1764607845108,-150.0,0.00016518,2]
[395308883,1764607845118,-150.0,0.00016523,2]
[395308884,1764607845128,-150.0,0.00016523,2]
[395308885,1764607845139,-587.0,0.00016533,2]
[395308886,1764607845149,-587.0,0.00016533,2]
[395308887,1764607845159,-2750.0,0.00016534,2]
[395308888,1764607845168,-150.0,0.00016551,2]
[395308889,1764607845179,-600.0,0.00016553,2]
[395308890,1764607845188,-150.0,0.00016562,2]
[395308891,1764607845198,-150.0,0.00016562,2]
[395308892,1764607845207,-150.0,0.00016562,2]
[395308893,1764607845217,-601.00906124,0.00016568,2]
[395308894,1764607845227,-150.0,0.00016576,2]
[395308896,1764607845237,-150.0,0.00016587,2]
[395308897,1764607845247,-2750.0,0.00016589,2]
[395308898,1764607845256,-150.0,0.00016594,2]
[395308899,1764607845267,-150.0,0.000166,2]
[395308900,1764607845277,-716.52354449,0.00016601,2]
[395308902,1764607845287,-150.0,0.00016609,2]
[395308904,1764607845297,-150.0,0.00016609,2]
[395308906,1764607845308,-150.0,0.00016635,2]
[395308908,1764607845318,-150.0,0.00016638,2]
[395308911,1764607845328,-154.09114675,0.00016643,2]
[395308913,1764607845337,-427.65493559,0.00016657,2]
[395308915,1764607845348,-2351.0,0.0001666,2]
[395308917,1764607845357,-1051.85827338,0.00016667,5]
[395308919,1764607845367,-20255.66887113,0.00016668,2]
[395308920,1764607845376,-150.0,0.00016668,2]
[395308921,1764607845386,-5888.0,0.00016677,2]
[395308922,1764607845396,-150.0,0.00016677,2]
[395308923,1764607845407,-150.0,0.00016677,2]
[395308924,1764607845416,-150.0,0.00016681,2]
[395308925,1764607845426,-150.0,0.00016687,2]
[395308926,1764607845436,-150.0,0.00016693,2]
[395308927,1764607845445,-642.94,0.00016697,2]
[395308928,1764607845455,-151.0,0.00016697,2]
[395308929,1764607845465,-533.88981491,0.00016697,2]
[395308930,1764607845475,-151.0,0.00016697,2]
[395308931,1764607845485,-150.0,0.00016703,2]
[395308932,1764607845494,-176.07,0.00016712,2]
[395308933,1764607845504,-151.0,0.00016713,2]
[395308934,1764607845514,-1399.0,0.00016718,2]
[395308935,1764607845525,-150.0,0.00016725,2]
[395308936,1764607845535,-601.00906123,0.00016734,2]
[395308937,1764607845546,-150.0,0.00016744,2]
[395308938,1764607845558,-397.0,0.00016746,2]
[395308939,1764607845568,-150.0,0.00016752,2]
[395308940,1764607845579,-150.0,0.00016755,2]
[395308941,1764607845590,-150.0,0.00016769,2]
[395308942,1764607845604,-150.0,0.00016774,2]
[395308943,1764607845615,-150.0,0.00016786,2]
[395308944,1764607845625,-150.0,0.00016798,2]
[395308945,1764607845637,-150.0,0.00016798,2]
[395308946,1764607845651,-442.52408404,0.000168,2]
[395308947,1764607845662,-150.0,0.00016811,2]
[395308948,1764607845672,-150.0,0.00016812,2]
[395308949,1764607845683,-150.0,0.00016832,2]
[395308950,1764607845694,-150.0,0.00016832,2]
[395308951,1764607845704,-500.0,0.00016853,2]
[395308952,1764607845717,-150.0,0.00016856,2]
[395308953,1764607845728,-200.0,0.00016863,2]
[395308954,1764607845738,-200.0,0.00016864,2]
[395308955,1764607845748,-200.0,0.00016864,2]
[395308956,1764607845758,-150.0,0.00016869,2]
[395308957,1764607845768,-5888.0,0.00016879,2]
[395308958,1764607845778,-150.0,0.0001688,2]
[395308959,1764607845787,-150.0,0.00016886,2]
[395308960,1764607845798,-150.0,0.00016892,2]
[395308961,1764607845809,-150.0,0.00016899,2]
[395308962,1764607845818,-10000.0,0.000169,2]
[395308963,1764607845829,-601.00906123,0.000169,2]
[395308965,1764607845839,-20255.66887113,0.000169,2]
[395308966,1764607845851,-716.52354449,0.000169,2]
[395308969,1764607845862,-388.91082704,0.000169,2]
[395308970,1764607845873,-286.9588226,0.000169,2]
[395308971,1764607845886,-4891.16942662,0.000169,2]
[395308972,1764607845896,-175.13102482,0.000169,2]
[395308973,1764607845907,-9575.0,0.000169,2]
[395308974,1764607845917,-150.0,0.00016909,2]
[395308975,1764607845927,-397.0,0.00016913,2]
[395308976,1764607845937,-397.0,0.00016916,2]
[395308977,1764607845948,-2250.17,0.00016922,2]
[395308978,1764607845958,-397.0,0.00016924,2]
[395308979,1764607845968,-150.0,0.00016928,2]
[395308980,1764607845979,-150.0,0.00016943,2]
[395308981,1764607845989,-15940.0,0.00016959,2]
[395308982,1764607845999,-1716.0,0.00016959,2]
[395308983,1764607846010,-501.63692659,0.00016973,2]
[395308984,1764607846019,-500.0,0.00016973,2]
[395308985,1764607846030,-500.0,0.00016973,2]
[395308986,1764607846039,-500.0,0.00016973,2]
[395308987,1764607846049,-642.97345703,0.00016973,2]
[395308988,1764607846058,-530.55981646,0.00016973,2]
[395308989,1764607846068,-410.80515512,0.00016973,2]
[395308990,1764607846078,-500.0,0.00016973,2]
[395308991,1764607846088,-500.0,0.00016973,2]
[395308992,1764607846099,-500.0,0.00016973,2]
[395308993,1764607846109,-500.0,0.00016973,2]
[395308994,1764607846119,-500.0,0.00016973,2]
[395308995,1764607846129,-500.0,0.00016973,2]
[395308996,1764607846138,-623.00541346,0.00016973,2]
[395308997,1764607846148,-500.0,0.00016973,2]
[395308998,1764607846157,-500.0,0.00016973,2]
[395308999,1764607846167,-610.74491434,0.00016973,2]
[395309000,1764607846178,-500.0,0.00016973,2]
[395309001,1764607846187,-500.0,0.00016973,2]
[395309002,1764607846197,-617.86212032,0.00016973,2]